[Event "Titled Tuesday Blitz July 25 Early 2023"]
[White "Rodriguez Santiago, Jaime"]
[Black "MateoReyes"]
[WhiteFideId "3100898"]
[WhiteElo "2363"]
[BlackElo "2495"]
[Result "1-0"]
[Round "9"]
[TimeControl "180+2"]
[Date "2023.07.25"]
[WhiteClock "0:00:09"]
[BlackClock "0:00:01"]
[Board "100"]

1. c4 {[%clk 0:03:00]}  e5 {[%clk 0:02:58]} 2. Nc3 {[%clk 0:02:57]}  Nc6 {[%clk 0:02:58]} 3. g3 {[%clk 0:02:57]}  Bc5 {[%clk 0:02:58]} 4. Bg2 {[%clk 0:02:55]}  a6 {[%clk 0:02:58]} 5. Nf3 {[%clk 0:02:52]}  d6 {[%clk 0:02:56]} 6. e3 {[%clk 0:02:51]}  Nf6 {[%clk 0:02:55]} 7. O-O {[%clk 0:02:49]}  O-O {[%clk 0:02:54]} 8. d4 {[%clk 0:02:47]}  Ba7 {[%clk 0:02:51]} 9. h3 {[%clk 0:02:43]}  Re8 {[%clk 0:02:49]} 10. g4 {[%clk 0:02:39]}  h6 {[%clk 0:02:42]} 11. dxe5 {[%clk 0:02:25]}  Nxe5 {[%clk 0:02:39]} 12. Nxe5 {[%clk 0:02:24]}  Rxe5 {[%clk 0:02:38]} 13. b3 {[%clk 0:02:21]}  h5 {[%clk 0:02:24]} 14. Bb2 {[%clk 0:02:01]}  hxg4 {[%clk 0:02:22]} 15. Nd5 {[%clk 0:01:51]}  Rg5 {[%clk 0:02:07]} 16. h4 {[%clk 0:01:32]}  Rh5 {[%clk 0:02:05]} 17. Nxf6+ {[%clk 0:01:22]}  gxf6 {[%clk 0:02:04]} 18. Bd5 {[%clk 0:01:15]}  c6 {[%clk 0:01:54]} 19. Bg2 {[%clk 0:01:08]}  Rxh4 {[%clk 0:01:53]} 20. Qc2 {[%clk 0:01:01]}  d5 {[%clk 0:01:46]} 21. Rad1 {[%clk 0:00:53]}  Qd6 {[%clk 0:01:45]} 22. Rfe1 {[%clk 0:00:50]}  Qh2+ {[%clk 0:01:43]} 23. Kf1 {[%clk 0:00:49]}  g3 {[%clk 0:01:42]} 24. fxg3 {[%clk 0:00:35]}  Qxg3 {[%clk 0:01:35]} 25. Qf2 {[%clk 0:00:24]}  Qxf2+ {[%clk 0:01:28]} 26. Kxf2 {[%clk 0:00:24]}  Be6 {[%clk 0:01:26]} 27. cxd5 {[%clk 0:00:24]}  cxd5 {[%clk 0:01:25]} 28. Bxd5 {[%clk 0:00:24]}  Rh2+ {[%clk 0:01:17]} 29. Kf3 {[%clk 0:00:20]}  Rxb2 {[%clk 0:01:15]} 30. Rg1+ {[%clk 0:00:20]}  Kf8 {[%clk 0:01:15]} 31. Bxe6 {[%clk 0:00:20]}  Re8 {[%clk 0:01:08]} 32. Bc4 {[%clk 0:00:12]}  Rxe3+ {[%clk 0:01:06]} 33. Kg4 {[%clk 0:00:12]}  Ke7 {[%clk 0:00:50]} 34. Rge1 {[%clk 0:00:12]}  Rxe1 {[%clk 0:00:48]} 35. Rxe1+ {[%clk 0:00:12]}  Kf8 {[%clk 0:00:47]} 36. Rd1 {[%clk 0:00:12]}  Rxa2 {[%clk 0:00:42]} 37. Rd7 {[%clk 0:00:12]}  Bc5 {[%clk 0:00:36]} 38. Rxf7+ {[%clk 0:00:11]}  Ke8 {[%clk 0:00:36]} 39. Rxb7 {[%clk 0:00:12]}  a5 {[%clk 0:00:35]} 40. Kf5 {[%clk 0:00:12]}  Bd4 {[%clk 0:00:33]} 41. Ke6 {[%clk 0:00:12]}  Kd8 {[%clk 0:00:30]} 42. Kd6 {[%clk 0:00:09]}  Be5+ {[%clk 0:00:30]} 43. Kc6 {[%clk 0:00:08]}  Rd2 {[%clk 0:00:29]} 44. Ra7 {[%clk 0:00:07]}  Bc3 {[%clk 0:00:27]} 45. Bd5 {[%clk 0:00:05]}  Bb4 {[%clk 0:00:21]} 46. Bf7 {[%clk 0:00:03]}  Rd6+ {[%clk 0:00:19]} 47. Kb5 {[%clk 0:00:04]}  f5 {[%clk 0:00:18]} 48. Ka4 {[%clk 0:00:04]}  Rf6 {[%clk 0:00:17]} 49. Bc4 {[%clk 0:00:05]}  f4 {[%clk 0:00:17]} 50. Ra8+ {[%clk 0:00:03]}  Kc7 {[%clk 0:00:17]} 51. Rh8 {[%clk 0:00:03]}  f3 {[%clk 0:00:16]} 52. Rh1 {[%clk 0:00:04]}  f2 {[%clk 0:00:17]} 53. Rf1 {[%clk 0:00:05]}  Be1 {[%clk 0:00:16]} 54. Kb5 {[%clk 0:00:05]}  Rf5+ {[%clk 0:00:15]} 55. Ka4 {[%clk 0:00:05]}  Kb6 {[%clk 0:00:15]} 56. Be2 {[%clk 0:00:05]}  Kc5 {[%clk 0:00:15]} 57. Bc4 {[%clk 0:00:06]}  Kd4 {[%clk 0:00:15]} 58. Bb5 {[%clk 0:00:06]}  Ke3 {[%clk 0:00:14]} 59. Bc4 {[%clk 0:00:06]}  Rf4 {[%clk 0:00:14]} 60. Kb5 {[%clk 0:00:05]}  Kf3 {[%clk 0:00:12]} 61. Bd5+ {[%clk 0:00:05]}  Ke2 {[%clk 0:00:12]} 62. Bc4+ {[%clk 0:00:05]}  Rxc4 {[%clk 0:00:12]} 63. Rxf2+ {[%clk 0:00:05]}  Kxf2 {[%clk 0:00:11]} 64. bxc4 {[%clk 0:00:05]}  Ke3 {[%clk 0:00:09]} 65. c5 {[%clk 0:00:05]}  Kd4 {[%clk 0:00:09]} 66. c6 {[%clk 0:00:05]}  Bh4 {[%clk 0:00:07]} 67. Kxa5 {[%clk 0:00:06]}  Kc5 {[%clk 0:00:07]} 68. c7 {[%clk 0:00:06]}  Kd6 {[%clk 0:00:04]} 69. c8=Q {[%clk 0:00:07]}  Bd8+ {[%clk 0:00:03]} 70. Qxd8+ {[%clk 0:00:06]}  Kc6 {[%clk 0:00:03]} 71. Qb6+ {[%clk 0:00:07]}  Kd7 {[%clk 0:00:02]} 72. Kb5 {[%clk 0:00:08]}  Kc8 {[%clk 0:00:03]} 73. Qa7 {[%clk 0:00:08]}  Kd8 {[%clk 0:00:03]} 74. Kc6 {[%clk 0:00:08]}  Ke8 {[%clk 0:00:01]} 75. Kd6 {[%clk 0:00:09]} 1-0


[Site "https://www.chess.com"]

[Event "Titled Tuesday Blitz July 25 Early 2023"]
[White "Mmukka"]
[Black "Buscar, Michael"]
[BlackFideId "2603616"]
[WhiteElo "2494"]
[BlackElo "2356"]
[Result "1/2-1/2"]
[Round "9"]
[TimeControl "180+2"]
[Date "2023.07.25"]
[WhiteClock "0:00:50"]
[BlackClock "0:01:45"]
[Board "101"]

1. e4 {[%clk 0:02:59]}  c5 {[%clk 0:02:54]} 2. Nf3 {[%clk 0:02:57]}  Nc6 {[%clk 0:02:54]} 3. d4 {[%clk 0:02:57]}  cxd4 {[%clk 0:02:54]} 4. Nxd4 {[%clk 0:02:58]}  Nf6 {[%clk 0:02:55]} 5. Nc3 {[%clk 0:02:57]}  e5 {[%clk 0:02:55]} 6. Ndb5 {[%clk 0:02:57]}  h6 {[%clk 0:02:55]} 7. Nd5 {[%clk 0:02:39]}  Nxd5 {[%clk 0:02:55]} 8. exd5 {[%clk 0:02:39]}  a6 {[%clk 0:02:56]} 9. dxc6 {[%clk 0:02:33]}  axb5 {[%clk 0:02:57]} 10. cxd7+ {[%clk 0:02:33]}  Bxd7 {[%clk 0:02:57]} 11. Be2 {[%clk 0:02:28]}  Qc7 {[%clk 0:02:55]} 12. O-O {[%clk 0:02:27]}  Bc5 {[%clk 0:02:54]} 13. c3 {[%clk 0:02:22]}  O-O {[%clk 0:02:53]} 14. Qc2 {[%clk 0:02:22]}  Ra4 {[%clk 0:02:49]} 15. b3 {[%clk 0:01:49]}  Rh4 {[%clk 0:02:43]} 16. g3 {[%clk 0:01:45]}  Rh3 {[%clk 0:02:38]} 17. Bf3 {[%clk 0:01:44]}  Bc6 {[%clk 0:02:24]} 18. Bg2 {[%clk 0:01:44]}  Rh5 {[%clk 0:02:17]} 19. Qe2 {[%clk 0:01:32]}  Bxg2 {[%clk 0:02:01]} 20. Kxg2 {[%clk 0:01:33]}  g6 {[%clk 0:01:57]} 21. Qxb5 {[%clk 0:01:20]}  Qc8 {[%clk 0:01:57]} 22. h4 {[%clk 0:01:16]}  Rxh4 {[%clk 0:01:46]} 23. gxh4 {[%clk 0:00:56]}  Qg4+ {[%clk 0:01:46]} 24. Kh2 {[%clk 0:00:53]}  Qxh4+ {[%clk 0:01:44]} 25. Kg2 {[%clk 0:00:53]}  Qg4+ {[%clk 0:01:44]} 26. Kh2 {[%clk 0:00:54]}  Qh4+ {[%clk 0:01:44]} 27. Kg2 {[%clk 0:00:52]}  Qg4+ {[%clk 0:01:44]} 28. Kh2 {[%clk 0:00:50]}  Qh4+ {[%clk 0:01:45]} 1/2-1/2


[Site "https://www.chess.com"]

[Event "Titled Tuesday Blitz July 25 Early 2023"]
[White "Torres Hernandez, Leslie Carolin"]
[Black "ExchangeAB"]
[WhiteFideId "8400504"]
[WhiteElo "2283"]
[BlackElo "2461"]
[Result "0-1"]
[Round "9"]
[TimeControl "180+2"]
[Date "2023.07.25"]
[WhiteClock "0:00:01"]
[BlackClock "0:00:16"]
[Board "106"]

1. e4 {[%clk 0:03:00]}  c6 {[%clk 0:03:00]} 2. d4 {[%clk 0:02:58]}  d5 {[%clk 0:03:00]} 3. exd5 {[%clk 0:02:59]}  cxd5 {[%clk 0:03:01]} 4. Nf3 {[%clk 0:02:59]}  Nf6 {[%clk 0:03:01]} 5. Ne5 {[%clk 0:02:57]}  a6 {[%clk 0:02:59]} 6. Bd3 {[%clk 0:02:51]}  g6 {[%clk 0:02:58]} 7. O-O {[%clk 0:02:51]}  Bg7 {[%clk 0:02:58]} 8. Re1 {[%clk 0:02:51]}  O-O {[%clk 0:02:58]} 9. c3 {[%clk 0:02:47]}  Nc6 {[%clk 0:02:50]} 10. Nd2 {[%clk 0:02:46]}  Nxe5 {[%clk 0:02:36]} 11. dxe5 {[%clk 0:02:46]}  Nd7 {[%clk 0:02:36]} 12. Nf3 {[%clk 0:02:33]}  Nc5 {[%clk 0:02:33]} 13. Bc2 {[%clk 0:02:30]}  Bf5 {[%clk 0:02:26]} 14. Bxf5 {[%clk 0:02:27]}  gxf5 {[%clk 0:02:27]} 15. Qd4 {[%clk 0:02:19]}  Ne4 {[%clk 0:02:16]} 16. c4 {[%clk 0:01:48]}  dxc4 {[%clk 0:02:14]} 17. Qxc4 {[%clk 0:01:48]}  e6 {[%clk 0:02:13]} 18. Bf4 {[%clk 0:01:42]}  Rc8 {[%clk 0:02:12]} 19. Qb3 {[%clk 0:01:42]}  b5 {[%clk 0:02:05]} 20. Red1 {[%clk 0:01:40]}  Qb6 {[%clk 0:02:05]} 21. Be3 {[%clk 0:01:38]}  Qb8 {[%clk 0:01:58]} 22. a4 {[%clk 0:00:37]}  bxa4 {[%clk 0:01:57]} 23. Qxa4 {[%clk 0:00:37]}  Qxb2 {[%clk 0:01:49]} 24. Qxa6 {[%clk 0:00:35]}  Nc3 {[%clk 0:01:18]} 25. Rd2 {[%clk 0:00:26]}  Qb5 {[%clk 0:01:12]} 26. Qxb5 {[%clk 0:00:21]}  Nxb5 {[%clk 0:01:13]} 27. Bg5 {[%clk 0:00:12]}  Nc3 {[%clk 0:01:07]} 28. h4 {[%clk 0:00:08]}  Nd5 {[%clk 0:01:01]} 29. Ra7 {[%clk 0:00:04]}  Ra8 {[%clk 0:01:00]} 30. Rda2 {[%clk 0:00:03]}  Rxa7 {[%clk 0:00:59]} 31. Rxa7 {[%clk 0:00:04]}  h6 {[%clk 0:00:54]} 32. Bd2 {[%clk 0:00:04]}  Rc8 {[%clk 0:00:53]} 33. Kf1 {[%clk 0:00:02]}  Rc7 {[%clk 0:00:50]} 34. Ra8+ {[%clk 0:00:02]}  Kh7 {[%clk 0:00:49]} 35. Ke2 {[%clk 0:00:03]}  Kg6 {[%clk 0:00:48]} 36. g3 {[%clk 0:00:03]}  Rc4 {[%clk 0:00:42]} 37. Rg8 {[%clk 0:00:03]}  Kh7 {[%clk 0:00:41]} 38. Ra8 {[%clk 0:00:03]}  Re4+ {[%clk 0:00:35]} 39. Kd3 {[%clk 0:00:02]}  Bxe5 {[%clk 0:00:30]} 40. Ra7 {[%clk 0:00:02]}  Kg6 {[%clk 0:00:28]} 41. h5+ {[%clk 0:00:02]}  Kg7 {[%clk 0:00:23]} 42. Ra6 {[%clk 0:00:01]}  Bf6 {[%clk 0:00:19]} 43. Ra7 {[%clk 0:00:01]}  Rg4 {[%clk 0:00:17]} 44. Nh2 {[%clk 0:00:01]}  Rd4+ {[%clk 0:00:16]} 45. Ke2 {[%clk 0:00:01]}  Rc4 {[%clk 0:00:16]} 46. Nf3 {[%clk 0:00:01]}  Nc3+ {[%clk 0:00:16]} 47. Kd3 {[%clk 0:00:02]}  Rc6 {[%clk 0:00:16]} 48. Bxc3 {[%clk 0:00:02]}  Rxc3+ {[%clk 0:00:17]} 49. Ke2 {[%clk 0:00:03]}  Rc2+ {[%clk 0:00:17]} 50. Kd3 {[%clk 0:00:03]}  Rc8 {[%clk 0:00:18]} 51. Ke2 {[%clk 0:00:03]}  Rd8 {[%clk 0:00:18]} 52. Ng1 {[%clk 0:00:03]}  Re8 {[%clk 0:00:18]} 53. Nf3 {[%clk 0:00:03]}  Re7 {[%clk 0:00:19]} 54. Ra6 {[%clk 0:00:03]}  Rc7 {[%clk 0:00:18]} 55. Ne1 {[%clk 0:00:02]}  Rb7 {[%clk 0:00:18]} 56. Nd3 {[%clk 0:00:02]}  Bd4 {[%clk 0:00:17]} 57. Nf4 {[%clk 0:00:03]}  Be5 {[%clk 0:00:16]} 58. Nd3 {[%clk 0:00:03]}  Bb8 {[%clk 0:00:15]} 59. Rc6 {[%clk 0:00:02]}  Rd7 {[%clk 0:00:15]} 60. Rc8 {[%clk 0:00:02]}  Bd6 {[%clk 0:00:15]} 61. Rc6 {[%clk 0:00:02]}  Be7 {[%clk 0:00:15]} 62. Rc8 {[%clk 0:00:02]}  Rd8 {[%clk 0:00:15]} 63. Rc7 {[%clk 0:00:02]}  Bf6 {[%clk 0:00:16]} 64. Nf4 {[%clk 0:00:02]}  Re8 {[%clk 0:00:16]} 65. Kf3 {[%clk 0:00:02]}  Be5 {[%clk 0:00:16]} 66. Nd3 {[%clk 0:00:01]}  Bxc7 {[%clk 0:00:16]} 0-1


[Site "https://www.chess.com"]

[Event "Titled Tuesday Blitz July 25 Early 2023"]
[White "Kiseleva, Arina"]
[Black "Ljukin, Sergei"]
[WhiteFideId "4164989"]
[BlackFideId "14102200"]
[WhiteElo "2241"]
[BlackElo "2457"]
[Result "0-1"]
[Round "9"]
[TimeControl "180+2"]
[Date "2023.07.25"]
[WhiteClock "0:00:00"]
[BlackClock "0:00:16"]
[Board "109"]

1. d4 {[%clk 0:03:00]}  d5 {[%clk 0:02:49]} 2. Nf3 {[%clk 0:03:00]}  Nf6 {[%clk 0:02:49]} 3. e3 {[%clk 0:03:01]}  e6 {[%clk 0:02:43]} 4. Bd3 {[%clk 0:03:00]}  c5 {[%clk 0:02:43]} 5. O-O {[%clk 0:02:59]}  Nc6 {[%clk 0:02:44]} 6. b3 {[%clk 0:02:58]}  Bd6 {[%clk 0:02:42]} 7. Bb2 {[%clk 0:02:58]}  O-O {[%clk 0:02:42]} 8. Nbd2 {[%clk 0:02:57]}  b6 {[%clk 0:02:41]} 9. Ne5 {[%clk 0:02:52]}  Qc7 {[%clk 0:02:40]} 10. Nxc6 {[%clk 0:02:48]}  Qxc6 {[%clk 0:02:39]} 11. dxc5 {[%clk 0:02:47]}  Bxc5 {[%clk 0:02:35]} 12. Bxf6 {[%clk 0:02:47]}  gxf6 {[%clk 0:02:35]} 13. Qg4+ {[%clk 0:02:47]}  Kh8 {[%clk 0:02:24]} 14. Qh4 {[%clk 0:02:46]}  f5 {[%clk 0:02:24]} 15. Qf6+ {[%clk 0:02:45]}  Kg8 {[%clk 0:02:23]} 16. Bxf5 {[%clk 0:02:15]}  Qc7 {[%clk 0:02:03]} 17. Bd3 {[%clk 0:01:48]}  Be7 {[%clk 0:01:49]} 18. Qh6 {[%clk 0:01:47]}  f5 {[%clk 0:01:48]} 19. f4 {[%clk 0:01:30]}  Rf6 {[%clk 0:01:35]} 20. Qh3 {[%clk 0:01:22]}  Bb7 {[%clk 0:01:19]} 21. Nf3 {[%clk 0:01:16]}  Rg6 {[%clk 0:01:10]} 22. Ne5 {[%clk 0:00:45]}  Rg7 {[%clk 0:01:10]} 23. Rf2 {[%clk 0:00:26]}  Bf6 {[%clk 0:01:06]} 24. Qh6 {[%clk 0:00:20]}  Rf8 {[%clk 0:00:50]} 25. Rc1 {[%clk 0:00:16]}  Kh8 {[%clk 0:00:45]} 26. Kf1 {[%clk 0:00:15]}  Bxe5 {[%clk 0:00:44]} 27. fxe5 {[%clk 0:00:11]}  Qxe5 {[%clk 0:00:44]} 28. g3 {[%clk 0:00:10]}  Rg6 {[%clk 0:00:37]} 29. Qf4 {[%clk 0:00:09]}  Qb2 {[%clk 0:00:32]} 30. Re1 {[%clk 0:00:08]}  Qf6 {[%clk 0:00:23]} 31. c4 {[%clk 0:00:07]}  e5 {[%clk 0:00:20]} 32. Qf3 {[%clk 0:00:03]}  e4 {[%clk 0:00:20]} 33. Bxe4 {[%clk 0:00:01]}  dxe4 {[%clk 0:00:19]} 34. Qf4 {[%clk 0:00:02]}  Qd6 {[%clk 0:00:17]} 35. h4 {[%clk 0:00:02]}  Qxf4 {[%clk 0:00:17]} 36. gxf4 {[%clk 0:00:00]}  Rd8 {[%clk 0:00:16]} 0-1


[Site "https://www.chess.com"]

[Event "Titled Tuesday Blitz July 25 Early 2023"]
[White "Skliarov, Viktor"]
[Black "Vemparala, Nikash"]
[WhiteFideId "14106736"]
[BlackFideId "30960967"]
[WhiteElo "2650"]
[BlackElo "2282"]
[Result "1-0"]
[Round "9"]
[TimeControl "180+2"]
[Date "2023.07.25"]
[WhiteClock "0:00:28"]
[BlackClock "0:00:50"]
[Board "110"]

1. e4 {[%clk 0:03:00]}  e5 {[%clk 0:02:58]} 2. Nc3 {[%clk 0:03:00]}  Nc6 {[%clk 0:02:54]} 3. Bc4 {[%clk 0:03:00]}  Nf6 {[%clk 0:02:53]} 4. d3 {[%clk 0:03:00]}  Bc5 {[%clk 0:02:51]} 5. a3 {[%clk 0:03:00]}  a5 {[%clk 0:02:50]} 6. h3 {[%clk 0:02:59]}  O-O {[%clk 0:02:49]} 7. Nge2 {[%clk 0:03:00]}  d6 {[%clk 0:02:44]} 8. Ng3 {[%clk 0:03:00]}  Nd4 {[%clk 0:02:40]} 9. O-O {[%clk 0:02:57]}  c6 {[%clk 0:02:40]} 10. Ba2 {[%clk 0:02:49]}  d5 {[%clk 0:02:38]} 11. Bg5 {[%clk 0:02:47]}  Be6 {[%clk 0:02:23]} 12. Nh5 {[%clk 0:01:54]}  Be7 {[%clk 0:02:16]} 13. Nxf6+ {[%clk 0:01:54]}  Bxf6 {[%clk 0:02:17]} 14. Bxf6 {[%clk 0:01:54]}  gxf6 {[%clk 0:02:10]} 15. Ne2 {[%clk 0:01:54]}  dxe4 {[%clk 0:02:06]} 16. Nxd4 {[%clk 0:01:49]}  exd4 {[%clk 0:02:02]} 17. Bxe6 {[%clk 0:01:47]}  fxe6 {[%clk 0:01:58]} 18. Qg4+ {[%clk 0:01:47]}  Kf7 {[%clk 0:01:57]} 19. Qxe4 {[%clk 0:01:39]}  f5 {[%clk 0:01:34]} 20. Qe5 {[%clk 0:01:39]}  Qf6 {[%clk 0:01:34]} 21. Qc7+ {[%clk 0:01:39]}  Qe7 {[%clk 0:01:34]} 22. Qf4 {[%clk 0:01:39]}  Rg8 {[%clk 0:01:31]} 23. Qxd4 {[%clk 0:01:18]}  Qg5 {[%clk 0:01:26]} 24. Qd7+ {[%clk 0:01:10]}  Kf6 {[%clk 0:01:26]} 25. g3 {[%clk 0:01:10]}  Rad8 {[%clk 0:01:19]} 26. Qxb7 {[%clk 0:01:03]}  f4 {[%clk 0:01:19]} 27. Qxc6 {[%clk 0:00:53]}  Ke7 {[%clk 0:01:03]} 28. Rae1 {[%clk 0:00:43]}  Rd6 {[%clk 0:00:58]} 29. Qc7+ {[%clk 0:00:30]}  Rd7 {[%clk 0:00:57]} 30. Rxe6+ {[%clk 0:00:28]}  Kxe6 {[%clk 0:00:54]} 31. Re1+ {[%clk 0:00:29]}  Kf6 {[%clk 0:00:49]} 32. Qxd7 {[%clk 0:00:29]}  fxg3 {[%clk 0:00:49]} 33. Re6+ {[%clk 0:00:28]}  Kf5 {[%clk 0:00:50]} 34. Qd5+ {[%clk 0:00:27]}  Kf4 {[%clk 0:00:50]} 35. Qe4# {[%clk 0:00:28]} 1-0


[Site "https://www.chess.com"]

[Event "Titled Tuesday Blitz July 25 Early 2023"]
[White "Womacka, Mathias"]
[Black "Krzywda, Andrzej"]
[WhiteFideId "4611390"]
[BlackFideId "1114565"]
[WhiteElo "2503"]
[BlackElo "2431"]
[Result "1-0"]
[Round "9"]
[TimeControl "180+2"]
[Date "2023.07.25"]
[WhiteClock "0:00:37"]
[BlackClock "0:00:08"]
[Board "117"]

1. e4 {[%clk 0:02:56]}  e5 {[%clk 0:02:59]} 2. Nf3 {[%clk 0:02:55]}  Nf6 {[%clk 0:03:00]} 3. Nxe5 {[%clk 0:02:54]}  d6 {[%clk 0:03:00]} 4. Nf3 {[%clk 0:02:54]}  Nxe4 {[%clk 0:03:00]} 5. d4 {[%clk 0:02:55]}  d5 {[%clk 0:02:59]} 6. Bd3 {[%clk 0:02:56]}  Be7 {[%clk 0:02:59]} 7. O-O {[%clk 0:02:55]}  Bf5 {[%clk 0:02:59]} 8. Nc3 {[%clk 0:02:52]}  Nxc3 {[%clk 0:02:51]} 9. bxc3 {[%clk 0:02:53]}  Bxd3 {[%clk 0:02:51]} 10. Qxd3 {[%clk 0:02:54]}  O-O {[%clk 0:02:51]} 11. Bf4 {[%clk 0:02:52]}  Nd7 {[%clk 0:02:47]} 12. c4 {[%clk 0:02:48]}  Nb6 {[%clk 0:02:31]} 13. c5 {[%clk 0:02:43]}  Nc4 {[%clk 0:02:26]} 14. Ne5 {[%clk 0:02:42]}  Nxe5 {[%clk 0:02:21]} 15. Bxe5 {[%clk 0:02:43]}  b6 {[%clk 0:02:14]} 16. Qb5 {[%clk 0:02:37]}  bxc5 {[%clk 0:02:06]} 17. dxc5 {[%clk 0:02:38]}  Bf6 {[%clk 0:02:04]} 18. Rfe1 {[%clk 0:02:32]}  Bxe5 {[%clk 0:02:00]} 19. Rxe5 {[%clk 0:02:33]}  Qf6 {[%clk 0:02:00]} 20. Rae1 {[%clk 0:02:31]}  c6 {[%clk 0:01:57]} 21. Qa6 {[%clk 0:02:18]}  Qg6 {[%clk 0:01:48]} 22. Qd3 {[%clk 0:02:03]}  Rfd8 {[%clk 0:01:22]} 23. Re7 {[%clk 0:01:51]}  Kf8 {[%clk 0:01:13]} 24. Qxg6 {[%clk 0:01:27]}  hxg6 {[%clk 0:01:13]} 25. Rc7 {[%clk 0:01:26]}  Re8 {[%clk 0:00:45]} 26. Kf1 {[%clk 0:01:18]}  Rxe1+ {[%clk 0:00:34]} 27. Kxe1 {[%clk 0:01:19]}  Re8+ {[%clk 0:00:31]} 28. Kd2 {[%clk 0:01:18]}  Re6 {[%clk 0:00:25]} 29. Rxa7 {[%clk 0:01:17]}  g5 {[%clk 0:00:24]} 30. h3 {[%clk 0:01:06]}  g6 {[%clk 0:00:23]} 31. Rc7 {[%clk 0:01:04]}  Kg7 {[%clk 0:00:23]} 32. a4 {[%clk 0:01:04]}  Re4 {[%clk 0:00:20]} 33. Rxc6 {[%clk 0:00:59]}  Rxa4 {[%clk 0:00:20]} 34. Rd6 {[%clk 0:00:58]}  d4 {[%clk 0:00:15]} 35. Kd3 {[%clk 0:00:56]}  Kf8 {[%clk 0:00:15]} 36. Rxd4 {[%clk 0:00:50]}  Ra1 {[%clk 0:00:15]} 37. c6 {[%clk 0:00:46]}  Ke8 {[%clk 0:00:13]} 38. c7 {[%clk 0:00:42]}  Ra8 {[%clk 0:00:12]} 39. Rd8+ {[%clk 0:00:40]}  Rxd8+ {[%clk 0:00:12]} 40. cxd8=Q+ {[%clk 0:00:40]}  Kxd8 {[%clk 0:00:13]} 41. Kd4 {[%clk 0:00:40]}  Kd7 {[%clk 0:00:13]} 42. Ke5 {[%clk 0:00:39]}  Ke7 {[%clk 0:00:12]} 43. c4 {[%clk 0:00:38]}  Kd7 {[%clk 0:00:08]} 44. Kf6 {[%clk 0:00:37]} 1-0


[Site "https://www.chess.com"]

[Event "Titled Tuesday Blitz July 25 Early 2023"]
[White "Shturman, Arseniy"]
[Black "Ionescu, Mihai"]
[WhiteFideId "34275797"]
[BlackFideId "1202499"]
[WhiteElo "2494"]
[BlackElo "2427"]
[Result "1-0"]
[Round "9"]
[TimeControl "180+2"]
[Date "2023.07.25"]
[WhiteClock "0:01:23"]
[BlackClock "0:01:24"]
[Board "118"]

1. e4 {[%clk 0:02:56]}  c5 {[%clk 0:02:59]} 2. Nf3 {[%clk 0:02:54]}  d6 {[%clk 0:02:59]} 3. d4 {[%clk 0:02:55]}  cxd4 {[%clk 0:02:59]} 4. Nxd4 {[%clk 0:02:55]}  Nf6 {[%clk 0:03:00]} 5. Nc3 {[%clk 0:02:55]}  g6 {[%clk 0:02:59]} 6. Be3 {[%clk 0:02:54]}  Bg7 {[%clk 0:02:58]} 7. f3 {[%clk 0:02:53]}  Nc6 {[%clk 0:02:57]} 8. Qd2 {[%clk 0:02:52]}  O-O {[%clk 0:02:57]} 9. O-O-O {[%clk 0:02:51]}  d5 {[%clk 0:02:57]} 10. exd5 {[%clk 0:02:44]}  Nxd5 {[%clk 0:02:57]} 11. Nxc6 {[%clk 0:02:36]}  bxc6 {[%clk 0:02:57]} 12. Bd4 {[%clk 0:02:36]}  e5 {[%clk 0:02:56]} 13. Bc5 {[%clk 0:02:35]}  Be6 {[%clk 0:02:56]} 14. Ne4 {[%clk 0:02:14]}  Re8 {[%clk 0:02:54]} 15. h4 {[%clk 0:02:14]}  h6 {[%clk 0:02:50]} 16. h5 {[%clk 0:02:07]}  g5 {[%clk 0:02:48]} 17. g4 {[%clk 0:02:07]}  Qc7 {[%clk 0:02:45]} 18. Bc4 {[%clk 0:02:07]}  Rad8 {[%clk 0:02:36]} 19. Qf2 {[%clk 0:02:02]}  Nf4 {[%clk 0:02:31]} 20. Bxe6 {[%clk 0:01:53]}  Nxe6 {[%clk 0:02:30]} 21. Rxd8 {[%clk 0:01:51]}  Rxd8 {[%clk 0:02:27]} 22. Rd1 {[%clk 0:01:52]}  Rxd1+ {[%clk 0:02:25]} 23. Kxd1 {[%clk 0:01:52]}  Qd7+ {[%clk 0:02:09]} 24. Qd2 {[%clk 0:01:47]}  Qxd2+ {[%clk 0:01:52]} 25. Kxd2 {[%clk 0:01:48]}  Nxc5 {[%clk 0:01:50]} 26. Nxc5 {[%clk 0:01:47]}  Bf8 {[%clk 0:01:51]} 27. Ne4 {[%clk 0:01:45]}  Be7 {[%clk 0:01:49]} 28. Kd3 {[%clk 0:01:40]}  Kf8 {[%clk 0:01:50]} 29. Kc4 {[%clk 0:01:39]}  Ke8 {[%clk 0:01:50]} 30. b4 {[%clk 0:01:39]}  Kd7 {[%clk 0:01:49]} 31. a4 {[%clk 0:01:38]}  Ke6 {[%clk 0:01:47]} 32. Ng3 {[%clk 0:01:36]}  Bd8 {[%clk 0:01:30]} 33. Nf5 {[%clk 0:01:25]}  Bb6 {[%clk 0:01:24]} 34. Nxh6 {[%clk 0:01:23]} 1-0


[Site "https://www.chess.com"]

[Event "Titled Tuesday Blitz July 25 Early 2023"]
[White "LangesNasenhaar"]
[Black "Tobak, Mikhail"]
[BlackFideId "14165570"]
[WhiteElo "2482"]
[BlackElo "2405"]
[Result "0-1"]
[Round "9"]
[TimeControl "180+2"]
[Date "2023.07.25"]
[WhiteClock "0:00:03"]
[BlackClock "0:01:33"]
[Board "121"]

1. d4 {[%clk 0:03:00]}  Nf6 {[%clk 0:02:59]} 2. Nc3 {[%clk 0:03:00]}  e6 {[%clk 0:02:56]} 3. Bf4 {[%clk 0:02:59]}  c5 {[%clk 0:02:55]} 4. d5 {[%clk 0:02:59]}  d6 {[%clk 0:02:53]} 5. e4 {[%clk 0:02:57]}  e5 {[%clk 0:02:53]} 6. Bg5 {[%clk 0:02:57]}  Be7 {[%clk 0:02:52]} 7. Nf3 {[%clk 0:02:51]}  h6 {[%clk 0:02:52]} 8. Bd2 {[%clk 0:02:42]}  O-O {[%clk 0:02:49]} 9. h3 {[%clk 0:02:42]}  a6 {[%clk 0:02:48]} 10. a4 {[%clk 0:02:42]}  Nh7 {[%clk 0:02:46]} 11. g4 {[%clk 0:02:24]}  Ng5 {[%clk 0:02:46]} 12. Ng1 {[%clk 0:02:20]}  Nd7 {[%clk 0:02:27]} 13. Bc4 {[%clk 0:02:04]}  Nf6 {[%clk 0:02:25]} 14. Qe2 {[%clk 0:01:58]}  Rb8 {[%clk 0:02:13]} 15. Bxg5 {[%clk 0:01:51]}  hxg5 {[%clk 0:02:13]} 16. Nf3 {[%clk 0:01:37]}  Nh7 {[%clk 0:02:13]} 17. Qd3 {[%clk 0:01:29]}  Bd7 {[%clk 0:02:12]} 18. a5 {[%clk 0:01:23]}  g6 {[%clk 0:02:10]} 19. Qd2 {[%clk 0:01:10]}  Kg7 {[%clk 0:02:10]} 20. Ke2 {[%clk 0:01:06]}  Rh8 {[%clk 0:02:07]} 21. Na4 {[%clk 0:01:02]}  f5 {[%clk 0:01:51]} 22. gxf5 {[%clk 0:00:50]}  gxf5 {[%clk 0:01:51]} 23. exf5 {[%clk 0:00:48]}  e4 {[%clk 0:01:49]} 24. Nh2 {[%clk 0:00:44]}  Bxf5 {[%clk 0:01:49]} 25. Ng4 {[%clk 0:00:39]}  Qf8 {[%clk 0:01:47]} 26. Qe3 {[%clk 0:00:35]}  Nf6 {[%clk 0:01:43]} 27. Qxg5+ {[%clk 0:00:27]}  Bg6 {[%clk 0:01:43]} 28. Qe3 {[%clk 0:00:25]}  Nxg4 {[%clk 0:01:41]} 29. hxg4 {[%clk 0:00:24]}  Qf6 {[%clk 0:01:39]} 30. c3 {[%clk 0:00:23]}  Rbf8 {[%clk 0:01:36]} 31. Nb6 {[%clk 0:00:21]}  Qf3+ {[%clk 0:01:33]} 32. Qxf3 {[%clk 0:00:15]}  exf3+ {[%clk 0:01:33]} 33. Kd2 {[%clk 0:00:03]}  Bg5+ {[%clk 0:01:33]} 0-1


[Site "https://www.chess.com"]